[Event "*** Titled Tuesday 3|2 Blitz"]
[Site "Chess.com"]
[Date "2015.04.07"]
[Round "2"]
[White "Daniel_Fridman"]
[Black "zmaj23"]
[Result "1/2-1/2"]
[WhiteElo "2626"]
[BlackElo "2388"]
[TimeControl "180+2"]
[EndTime "11:25:13 PDT"]
[Termination "Game drawn - insufficient material"]

1. d4 {[%clk 0:02:58.3]} 1... c5 {[%clk 0:02:59.3]} 2. d5 {[%clk 0:02:58.9]}
2... f5 {[%clk 0:03:00.5]} 3. Nc3 {[%clk 0:03:00.8]} 3... d6 {[%clk 0:03:00.6]}
4. e4 {[%clk 0:03:01.2]} 4... fxe4 {[%clk 0:02:57.2]} 5. Nxe4 {[%clk 0:03:01.8]}
5... Bf5 {[%clk 0:02:56.2]} 6. Bd3 {[%clk 0:03:02]} 6... c4 {[%clk 0:02:54.2]}
7. Nf6+ {[%clk 0:02:55]} 7... Nxf6 {[%clk 0:02:53.1]} 8. Bxf5 {[%clk 0:02:56.2]}
8... Qa5+ {[%clk 0:02:50.6]} 9. c3 {[%clk 0:02:55.8]} 9... Qxd5 {[%clk
0:02:45.5]} 10. Qxd5 {[%clk 0:02:53.1]} 10... Nxd5 {[%clk 0:02:47.4]} 11. Bc8
{[%clk 0:02:54]} 11... b6 {[%clk 0:02:41.4]} 12. Bb7 {[%clk 0:02:54]} 12... Nc7
{[%clk 0:02:43]} 13. Nf3 {[%clk 0:02:38.4]} 13... e5 {[%clk 0:02:36.8]} 14. Nd2
{[%clk 0:02:29.6]} 14... d5 {[%clk 0:02:34.8]} 15. b3 {[%clk 0:02:30.5]} 15...
b5 {[%clk 0:02:33.4]} 16. Bb2 {[%clk 0:02:11.5]} 16... Bc5 {[%clk 0:02:31.4]}
17. a4 {[%clk 0:02:08.4]} 17... O-O {[%clk 0:02:31.7]} 18. O-O {[%clk
0:02:08.7]} 18... Nd7 {[%clk 0:02:29.7]} 19. Bxa8 {[%clk 0:02:08.3]} 19... Rxa8
{[%clk 0:02:30.2]} 20. axb5 {[%clk 0:02:09.3]} 20... e4 {[%clk 0:02:24.9]} 21.
Kh1 {[%clk 0:01:43.6]} 21... cxb3 {[%clk 0:02:20]} 22. Nxb3 {[%clk 0:01:43.5]}
22... Nxb5 {[%clk 0:02:20]} 23. Rad1 {[%clk 0:01:15.8]} 23... Nc7 {[%clk
0:02:17.3]} 24. c4 {[%clk 0:01:14.6]} 24... Bb4 {[%clk 0:02:11.3]} 25. cxd5
{[%clk 0:01:14.4]} 25... a5 {[%clk 0:02:11.8]} 26. Rd4 {[%clk 0:01:07.6]} 26...
Nf6 {[%clk 0:02:10.2]} 27. d6 {[%clk 0:00:54.6]} 27... Nb5 {[%clk 0:02:07]} 28.
Rdd1 {[%clk 0:00:54.4]} 28... Nxd6 {[%clk 0:02:01.5]} 29. Nd4 {[%clk 0:00:55.2]}
29... Nc4 {[%clk 0:01:59.3]} 30. Ba1 {[%clk 0:00:56.1]} 30... e3 {[%clk
0:01:58]} 31. f3 {[%clk 0:00:35.6]} 31... e2 {[%clk 0:01:55]} 32. Nxe2 {[%clk
0:00:36]} 32... Ne3 {[%clk 0:01:56.3]} 33. Rb1 {[%clk 0:00:35]} 33... Nxf1
{[%clk 0:01:56.5]} 34. Rxf1 {[%clk 0:00:36.9]} 34... Re8 {[%clk 0:01:51.1]} 35.
Nd4 {[%clk 0:00:37.2]} 35... a4 {[%clk 0:01:49.6]} 36. Rb1 {[%clk 0:00:36.4]}
36... a3 {[%clk 0:01:48.1]} 37. Kg1 {[%clk 0:00:33.2]} 37... Nd5 {[%clk
0:01:48.7]} 38. Kf2 {[%clk 0:00:32.7]} 38... a2 {[%clk 0:01:40.6]} 39. Rc1
{[%clk 0:00:33.3]} 39... Re7 {[%clk 0:01:30.9]} 40. Rc8+ {[%clk 0:00:23.6]}
40... Kf7 {[%clk 0:01:31.4]} 41. Ra8 {[%clk 0:00:25.4]} 41... Be1+ {[%clk
0:01:25.7]} 42. Kf1 {[%clk 0:00:25.2]} 42... Bc3 {[%clk 0:01:25.3]} 43. Nc2
{[%clk 0:00:21.3]} 43... Bxa1 {[%clk 0:01:22.3]} 44. Nxa1 {[%clk 0:00:22.2]}
44... Nc3 {[%clk 0:01:24.2]} 45. Ra3 {[%clk 0:00:20.4]} 45... Rb7 {[%clk
0:01:17.3]} 46. Rxc3 {[%clk 0:00:19.1]} 46... Rb1+ {[%clk 0:01:18.9]} 47. Kf2
{[%clk 0:00:20.5]} 47... Rxa1 {[%clk 0:01:20.3]} 48. Ra3 {[%clk 0:00:22.2]}
48... Ke6 {[%clk 0:01:10.2]} 49. h4 {[%clk 0:00:21.4]} 49... g6 {[%clk
0:01:11.1]} 50. Kg3 {[%clk 0:00:21.3]} 50... Kd5 {[%clk 0:01:04.7]} 51. Kf4
{[%clk 0:00:20.7]} 51... Kc4 {[%clk 0:01:03.6]} 52. g4 {[%clk 0:00:18]} 52...
Kb4 {[%clk 0:01:01.6]} 53. Ra8 {[%clk 0:00:18.5]} 53... Kb3 {[%clk 0:01:00.6]}
54. Rb8+ {[%clk 0:00:19.6]} 54... Ka3 {[%clk 0:00:58.3]} 55. Ra8+ {[%clk
0:00:20.3]} 55... Kb3 {[%clk 0:00:58.5]} 56. Rb8+ {[%clk 0:00:21]} 56... Kc3
{[%clk 0:00:52.4]} 57. Ra8 {[%clk 0:00:20.4]} 57... Kc2 {[%clk 0:00:50.5]} 58.
Kg5 {[%clk 0:00:17]} 58... Kb2 {[%clk 0:00:48.8]} 59. Kh6 {[%clk 0:00:09.4]}
59... Rh1 {[%clk 0:00:45.8]} 60. Kxh7 {[%clk 0:00:08.3]} 60... Rxh4+ {[%clk
0:00:46.4]} 61. Kxg6 {[%clk 0:00:09.5]} 61... Rh3 {[%clk 0:00:27.1]} 62. f4
{[%clk 0:00:09.7]} 62... Ra3 {[%clk 0:00:25.3]} 63. Rb8+ {[%clk 0:00:10.6]}
63... Kc2 {[%clk 0:00:24]} 64. Rc8+ {[%clk 0:00:11.8]} 64... Kd3 {[%clk
0:00:23.3]} 65. Rc1 {[%clk 0:00:12]} 65... Ra6+ {[%clk 0:00:22.9]} 66. Kg7
{[%clk 0:00:11.8]} 66... Ke4 {[%clk 0:00:18.4]} 67. f5 {[%clk 0:00:12.9]} 67...
Ra7+ {[%clk 0:00:19.7]} 68. Kg6 {[%clk 0:00:13.6]} 68... a1=Q {[%clk 0:00:17.8]}
69. Rxa1 {[%clk 0:00:13.9]} 69... Rxa1 {[%clk 0:00:19.7]} 70. f6 {[%clk
0:00:15.4]} 70... Ra8 {[%clk 0:00:15.9]} 71. f7 {[%clk 0:00:13.6]} 71... Kf4
{[%clk 0:00:16.7]} 72. g5 {[%clk 0:00:13.3]} 72... Ke5 {[%clk 0:00:15.9]} 73.
Kg7 {[%clk 0:00:13.9]} 73... Kf5 {[%clk 0:00:17]} 74. g6 {[%clk 0:00:14.1]}
74... Kg5 {[%clk 0:00:16.9]} 75. f8=Q {[%clk 0:00:10.9]} 75... Rxf8 {[%clk
0:00:17.4]} 76. Kxf8 {[%clk 0:00:12.6]} 76... Kxg6 {[%clk 0:00:19.3]} 1/2-1/2

[Event "*** Titled Tuesday 3|2 Blitz"]
[Site "Chess.com"]
[Date "2015.04.07"]
[Round "2"]
[White "MITerryble"]
[Black "David_Klein"]
[Result "1-0"]
[WhiteElo "2493"]
[BlackElo "2341"]
[TimeControl "180+2"]
[EndTime "11:25:16 PDT"]
[Termination "MITerryble won by resignation"]

1. d4 {[%clk 0:02:59.4]} 1... Nf6 {[%clk 0:02:59.7]} 2. Nf3 {[%clk 0:02:59.1]}
2... e6 {[%clk 0:02:59.6]} 3. c4 {[%clk 0:03:00]} 3... d5 {[%clk 0:03:00.4]} 4.
Nc3 {[%clk 0:03:00.6]} 4... Nbd7 {[%clk 0:03:01]} 5. Bf4 {[%clk 0:03:01.3]} 5...
dxc4 {[%clk 0:02:55.1]} 6. e3 {[%clk 0:03:00.3]} 6... a6 {[%clk 0:02:56.1]} 7.
Bxc4 {[%clk 0:02:58.9]} 7... Bd6 {[%clk 0:02:56.2]} 8. Bxd6 {[%clk 0:02:56.6]}
8... cxd6 {[%clk 0:02:58.1]} 9. a4 {[%clk 0:02:56.3]} 9... d5 {[%clk 0:02:57.3]}
10. Bd3 {[%clk 0:02:57]} 10... b6 {[%clk 0:02:58.6]} 11. Qb3 {[%clk 0:02:56.6]}
11... O-O {[%clk 0:02:59.3]} 12. O-O {[%clk 0:02:56.8]} 12... Bb7 {[%clk
0:02:59.8]} 13. Rfc1 {[%clk 0:02:55.9]} 13... Qe7 {[%clk 0:02:54.4]} 14. a5
{[%clk 0:02:44.3]} 14... b5 {[%clk 0:02:54.8]} 15. Na2 {[%clk 0:02:27.2]} 15...
Rfc8 {[%clk 0:02:54.2]} 16. Qb4 {[%clk 0:02:27.3]} 16... Kf8 {[%clk 0:02:53.4]}
17. Kf1 {[%clk 0:02:21.9]} 17... g6 {[%clk 0:02:49.7]} 18. Ke1 {[%clk 0:02:21]}
18... Ne8 {[%clk 0:02:50.1]} 19. Qxe7+ {[%clk 0:02:06.4]} 19... Kxe7 {[%clk
0:02:50.9]} 20. Nb4 {[%clk 0:02:08.3]} 20... f6 {[%clk 0:02:50.3]} 21. Kd2
{[%clk 0:02:03.3]} 21... Nd6 {[%clk 0:02:51.2]} 22. b3 {[%clk 0:02:03.7]} 22...
Rxc1 {[%clk 0:02:34.5]} 23. Rxc1 {[%clk 0:02:03.9]} 23... Rc8 {[%clk 0:02:35.9]}
24. Rxc8 {[%clk 0:01:59.4]} 24... Nxc8 {[%clk 0:02:36.6]} 25. Ne1 {[%clk
0:01:43.3]} 25... Nb8 {[%clk 0:02:34.2]} 26. Be2 {[%clk 0:01:42]} 26... Na7
{[%clk 0:02:30.7]} 27. Ned3 {[%clk 0:01:41.7]} 27... Nbc6 {[%clk 0:02:31.4]} 28.
Nxc6+ {[%clk 0:01:42.8]} 28... Nxc6 {[%clk 0:02:33.3]} 29. b4 {[%clk 0:01:44.7]}
29... Bc8 {[%clk 0:02:32.9]} 30. Kc3 {[%clk 0:01:45.1]} 30... Kd6 {[%clk
0:02:34]} 31. Nc5 {[%clk 0:01:36]} 31... Ne7 {[%clk 0:02:34]} 32. Bg4 {[%clk
0:01:30.4]} 32... f5 {[%clk 0:02:27.4]} 33. Be2 {[%clk 0:01:29.5]} 33... Ng8
{[%clk 0:02:28.6]} 34. f3 {[%clk 0:01:23.4]} 34... Nf6 {[%clk 0:02:29.4]} 35.
Bd1 {[%clk 0:01:17.9]} 35... g5 {[%clk 0:02:28.3]} 36. Kd2 {[%clk 0:01:08.3]}
36... h6 {[%clk 0:02:15.1]} 37. Nd3 {[%clk 0:01:09]} 37... Nd7 {[%clk
0:02:14.7]} 38. h3 {[%clk 0:01:05]} 38... e5 {[%clk 0:02:09.1]} 39. Kc3 {[%clk
0:00:56.6]} 39... e4 {[%clk 0:02:08.8]} 40. Nc5 {[%clk 0:00:52.7]} 40... Nf6
{[%clk 0:02:08.2]} 41. f4 {[%clk 0:00:43.3]} 41... g4 {[%clk 0:02:01.9]} 42. Kd2
{[%clk 0:00:41.8]} 42... h5 {[%clk 0:02:02.4]} 43. Ke1 {[%clk 0:00:32.9]} 43...
g3 {[%clk 0:02:03.3]} 44. h4 {[%clk 0:00:24.2]} 44... Ke7 {[%clk 0:01:38.9]} 45.
Nb3 {[%clk 0:00:24.9]} 45... Kf8 {[%clk 0:01:33.2]} 46. Nd2 {[%clk 0:00:25.1]}
46... Kg7 {[%clk 0:00:53.7]} 47. Nf1 {[%clk 0:00:25.9]} 47... Kg6 {[%clk
0:00:52.8]} 48. Nxg3 {[%clk 0:00:27]} 48... Bd7 {[%clk 0:00:53.9]} 49. Kd2
{[%clk 0:00:26.4]} 49... Bc8 {[%clk 0:00:54.9]} 50. Kc1 {[%clk 0:00:20.9]} 50...
Bd7 {[%clk 0:00:56.1]} 51. Nf1 {[%clk 0:00:21.9]} 51... Bc8 {[%clk 0:00:57.4]}
52. Nd2 {[%clk 0:00:22.7]} 52... Bd7 {[%clk 0:00:58.6]} 53. Be2 {[%clk
0:00:23.8]} 53... Bc8 {[%clk 0:00:57.3]} 54. Kd1 {[%clk 0:00:25]} 54... Ng8
{[%clk 0:00:55.9]} 55. Nb3 {[%clk 0:00:24.1]} 55... Ne7 {[%clk 0:00:56.9]} 56.
Kd2 {[%clk 0:00:23.1]} 56... Nc6 {[%clk 0:00:48.2]} 57. Kc3 {[%clk 0:00:24]}
57... Ne7 {[%clk 0:00:49.4]} 58. Bd1 {[%clk 0:00:25.1]} 58... Nc6 {[%clk
0:00:50.4]} 59. Nc1 {[%clk 0:00:25.9]} 59... Ne7 {[%clk 0:00:51.5]} 60. Ne2
{[%clk 0:00:26.7]} 60... Nc6 {[%clk 0:00:52.7]} 61. Ng3 {[%clk 0:00:28.6]} 61...
Ne7 {[%clk 0:00:53.9]} 62. Bxh5+ {[%clk 0:00:29.3]} 62... Kf6 {[%clk 0:00:54.4]}
63. Kd2 {[%clk 0:00:25.2]} 63... Nc6 {[%clk 0:00:53.5]} 64. Kc3 {[%clk
0:00:26.2]} 64... Ne7 {[%clk 0:00:54.6]} 65. Be8 {[%clk 0:00:24]} 65... Kg7
{[%clk 0:00:49.5]} 66. Kd2 {[%clk 0:00:22.1]} 66... Kf8 {[%clk 0:00:50.4]} 67.
Bh5 {[%clk 0:00:19.5]} 67... Kg7 {[%clk 0:00:51.9]} 68. Nf1 {[%clk 0:00:17.7]}
68... Kh6 {[%clk 0:00:51.9]} 69. Be2 {[%clk 0:00:18.5]} 69... Ng6 {[%clk
0:00:53]} 70. g3 {[%clk 0:00:18.2]} 70... Ne7 {[%clk 0:00:54.5]} 71. Nh2 {[%clk
0:00:19.3]} 71... Ng6 {[%clk 0:00:54]} 72. h5 {[%clk 0:00:20.1]} 72... Ne7
{[%clk 0:00:53.5]} 73. Kc3 {[%clk 0:00:20.6]} 73... Ng8 {[%clk 0:00:53.6]} 74.
g4 {[%clk 0:00:20.7]} 74... fxg4 {[%clk 0:00:49]} 75. Nxg4+ {[%clk 0:00:22.6]}
75... Kg7 {[%clk 0:00:50.2]} 76. Ne5 {[%clk 0:00:20.7]} 76... Nf6 {[%clk
0:00:51]} 77. Kd2 {[%clk 0:00:21]} 77... Kh6 {[%clk 0:00:51.9]} 78. Ke1 {[%clk
0:00:22.4]} 78... Nd7 {[%clk 0:00:49.2]} 79. Nxd7 {[%clk 0:00:20]} 79... Bxd7
{[%clk 0:00:51.1]} 80. Kf2 {[%clk 0:00:21.8]} 80... Bf5 {[%clk 0:00:51.6]} 81.
Kg3 {[%clk 0:00:23.3]} 81... Kg7 {[%clk 0:00:51]} 82. Bg4 {[%clk 0:00:23.3]}
82... Bh7 {[%clk 0:00:51.7]} 83. Bc8 {[%clk 0:00:23.8]} 1-0

[Event "*** Titled Tuesday 3|2 Blitz"]
[Site "Chess.com"]
[Date "2015.04.07"]
[Round "2"]
[White "Cryptochess"]
[Black "facu57"]
[Result "0-1"]
[WhiteElo "2332"]
[BlackElo "2131"]
[TimeControl "180+2"]
[EndTime "11:25:36 PDT"]
[Termination "facu57 won by checkmate"]

1. e4 {[%clk 0:03:01.9]} 1... c6 {[%clk 0:03:00.7]} 2. d4 {[%clk 0:03:01.7]}
2... d5 {[%clk 0:03:02.6]} 3. Nc3 {[%clk 0:03:02.5]} 3... dxe4 {[%clk
0:03:03.9]} 4. Nxe4 {[%clk 0:03:04.4]} 4... Nf6 {[%clk 0:03:05.8]} 5. Nxf6+
{[%clk 0:03:04.8]} 5... exf6 {[%clk 0:03:07.7]} 6. Nf3 {[%clk 0:03:06.4]} 6...
Bd6 {[%clk 0:03:08.2]} 7. Bd3 {[%clk 0:03:07.9]} 7... O-O {[%clk 0:03:08.9]} 8.
O-O {[%clk 0:03:09.4]} 8... Bg4 {[%clk 0:03:09.1]} 9. h3 {[%clk 0:03:07.6]} 9...
Bh5 {[%clk 0:03:09.9]} 10. Bd2 {[%clk 0:03:05.5]} 10... Nd7 {[%clk 0:03:11]} 11.
Re1 {[%clk 0:03:05.4]} 11... Bc7 {[%clk 0:03:10.5]} 12. c4 {[%clk 0:02:51.3]}
12... Nb6 {[%clk 0:03:10.2]} 13. Bc3 {[%clk 0:02:37.3]} 13... Qd7 {[%clk
0:03:08.9]} 14. Qc2 {[%clk 0:02:03]} 14... Bg6 {[%clk 0:03:06.5]} 15. b3 {[%clk
0:01:57.2]} 15... Rad8 {[%clk 0:03:05.3]} 16. Rad1 {[%clk 0:01:56.5]} 16... Nc8
{[%clk 0:03:02.4]} 17. d5 {[%clk 0:01:52.4]} 17... cxd5 {[%clk 0:03:00.6]} 18.
Bxg6 {[%clk 0:01:52.5]} 18... hxg6 {[%clk 0:03:00.4]} 19. Rxd5 {[%clk
0:01:53.4]} 19... Qc6 {[%clk 0:03:00]} 20. Nd4 {[%clk 0:01:53.7]} 20... Qa6
{[%clk 0:02:54.8]} 21. Nb5 {[%clk 0:01:52.8]} 21... Bb8 {[%clk 0:02:50.2]} 22.
a4 {[%clk 0:01:35.7]} 22... Rxd5 {[%clk 0:02:47.8]} 23. cxd5 {[%clk 0:01:36.4]}
23... Nd6 {[%clk 0:02:47]} 24. Bb4 {[%clk 0:01:33]} 24... Rd8 {[%clk 0:02:44.2]}
25. Nxd6 {[%clk 0:01:07.9]} 25... Bxd6 {[%clk 0:02:44.5]} 26. Bxd6 {[%clk
0:01:07.1]} 26... Qxd6 {[%clk 0:02:45]} 27. Rd1 {[%clk 0:01:07.8]} 27... b6
{[%clk 0:02:41.5]} 28. Qd3 {[%clk 0:01:05.9]} 28... g5 {[%clk 0:02:39.3]} 29.
Qf5 {[%clk 0:01:04]} 29... g6 {[%clk 0:02:39.2]} 30. Qf3 {[%clk 0:01:03.5]}
30... Kg7 {[%clk 0:02:40.3]} 31. Qd3 {[%clk 0:01:00.1]} 31... Rd7 {[%clk
0:02:41.1]} 32. Qb5 {[%clk 0:01:00.6]} 32... Rc7 {[%clk 0:02:41.5]} 33. a5
{[%clk 0:00:58.6]} 33... Rc5 {[%clk 0:02:41.9]} 34. Qb4 {[%clk 0:00:59.4]} 34...
bxa5 {[%clk 0:02:39.6]} 35. Qd4 {[%clk 0:00:59.9]} 35... Rb5 {[%clk 0:02:37.9]}
36. Qc4 {[%clk 0:00:43.5]} 36... Rb6 {[%clk 0:02:31.9]} 37. Ra1 {[%clk
0:00:30.3]} 37... Qe5 {[%clk 0:01:27.6]} 38. Ra2 {[%clk 0:00:21.4]} 38... Rd6
{[%clk 0:01:26.1]} 39. g3 {[%clk 0:00:13.5]} 39... Qxd5 {[%clk 0:01:24.3]} 40.
Qc3 {[%clk 0:00:11.5]} 40... Qd1+ {[%clk 0:01:15.1]} 41. Kg2 {[%clk 0:00:11.1]}
41... Rd3 {[%clk 0:01:13.2]} 42. Qc6 {[%clk 0:00:05.8]} 42... Rd5 {[%clk
0:01:03.1]} 43. Qc4 {[%clk 0:00:05.5]} 43... Rf5 {[%clk 0:00:54.2]} 44. Re2
{[%clk 0:00:05.5]} 44... Qd6 {[%clk 0:00:50.9]} 45. Re3 {[%clk 0:00:04.9]} 45...
Rc5 {[%clk 0:00:50.1]} 46. Qa4 {[%clk 0:00:03.8]} 46... Qd5+ {[%clk 0:00:48.7]}
47. Qe4 {[%clk 0:00:02.6]} 47... Qxe4+ {[%clk 0:00:44.3]} 48. Rxe4 {[%clk
0:00:04.5]} 48... Rb5 {[%clk 0:00:45.7]} 49. Re7 {[%clk 0:00:05.6]} 49... Rxb3
{[%clk 0:00:45.7]} 50. Rxa7 {[%clk 0:00:07.1]} 50... Ra3 {[%clk 0:00:46.4]} 51.
Kh2 {[%clk 0:00:08.8]} 51... f5 {[%clk 0:00:47.8]} 52. Kg2 {[%clk 0:00:10.7]}
52... Ra2 {[%clk 0:00:49.2]} 53. Ra6 {[%clk 0:00:11.6]} 53... a4 {[%clk
0:00:49.7]} 54. Kf3 {[%clk 0:00:13]} 54... a3 {[%clk 0:00:50.6]} 55. g4 {[%clk
0:00:14.6]} 55... Ra1 {[%clk 0:00:49.3]} 56. Ra5 {[%clk 0:00:12.1]} 56... Kf6
{[%clk 0:00:46.2]} 57. Ra6+ {[%clk 0:00:12.8]} 57... Ke5 {[%clk 0:00:47.1]} 58.
Ra7 {[%clk 0:00:13.8]} 58... a2 {[%clk 0:00:43.6]} 59. Ra4 {[%clk 0:00:11.9]}
59... Kd5 {[%clk 0:00:40.9]} 60. Ra7 {[%clk 0:00:08]} 60... Rh1 {[%clk
0:00:36.2]} 61. Rxa2 {[%clk 0:00:08.5]} 61... Rxh3+ {[%clk 0:00:37]} 62. Kg2
{[%clk 0:00:10.1]} 62... Rc3 {[%clk 0:00:30.8]} 63. gxf5 {[%clk 0:00:06.2]}
63... gxf5 {[%clk 0:00:30.9]} 64. Ra7 {[%clk 0:00:08.1]} 64... f6 {[%clk
0:00:30.8]} 65. Ra6 {[%clk 0:00:09.5]} 65... Rc6 {[%clk 0:00:31.5]} 66. Ra5+
{[%clk 0:00:11]} 66... Ke6 {[%clk 0:00:32.4]} 67. Ra8 {[%clk 0:00:12.3]} 67...
f4 {[%clk 0:00:29.6]} 68. Kf3 {[%clk 0:00:13.5]} 68... Kf5 {[%clk 0:00:29.5]}
69. Ra5+ {[%clk 0:00:14.5]} 69... Kg6 {[%clk 0:00:30.5]} 70. Kg4 {[%clk
0:00:15.8]} 70... Rc2 {[%clk 0:00:26.8]} 71. Kf3 {[%clk 0:00:16.2]} 71... Rc3+
{[%clk 0:00:26.6]} 72. Kg2 {[%clk 0:00:16.2]} 72... g4 {[%clk 0:00:26.3]} 73.
Rb5 {[%clk 0:00:16.7]} 73... Rc2 {[%clk 0:00:27]} 74. Rb4 {[%clk 0:00:15.1]}
74... Kg5 {[%clk 0:00:25.5]} 75. Rb5+ {[%clk 0:00:15.9]} 75... f5 {[%clk
0:00:26.5]} 76. Rb8 {[%clk 0:00:10.7]} 76... g3 {[%clk 0:00:27.6]} 77. Rg8+
{[%clk 0:00:11]} 77... Kh6 {[%clk 0:00:28.6]} 78. Kh3 {[%clk 0:00:07.3]} 78...
Rxf2 {[%clk 0:00:25.2]} 79. Rg5 {[%clk 0:00:05.7]} 79... Rh2# {[%clk 0:00:25.1]}
0-1

[Event "*** Titled Tuesday 3|2 Blitz"]
[Site "Chess.com"]
[Date "2015.04.07"]
[Round "2"]
[White "Yaacovn"]
[Black "Tilicheev_Viacheslav"]
[Result "1-0"]
[WhiteElo "2615"]
[BlackElo "2445"]
[TimeControl "180+2"]
[EndTime "11:27:10 PDT"]
[Termination "Yaacovn won on time"]

1. d4 {[%clk 0:03:01.9]} 1... g6 {[%clk 0:02:58.4]} 2. Nf3 {[%clk 0:02:55.2]}
2... Bg7 {[%clk 0:02:59]} 3. c4 {[%clk 0:02:56]} 3... d6 {[%clk 0:03:00.2]} 4.
g3 {[%clk 0:02:56.3]} 4... e6 {[%clk 0:02:53.6]} 5. Bg2 {[%clk 0:02:57.5]} 5...
Ne7 {[%clk 0:02:54.9]} 6. O-O {[%clk 0:02:58.6]} 6... Nd7 {[%clk 0:02:56.3]} 7.
Nc3 {[%clk 0:03:00.1]} 7... h6 {[%clk 0:02:55.7]} 8. b3 {[%clk 0:03:01.1]} 8...
b6 {[%clk 0:02:53.6]} 9. Bb2 {[%clk 0:02:46.8]} 9... Bb7 {[%clk 0:02:54.5]} 10.
e4 {[%clk 0:02:41.9]} 10... O-O {[%clk 0:02:50.1]} 11. Re1 {[%clk 0:02:42.8]}
11... Kh7 {[%clk 0:02:46]} 12. Qd2 {[%clk 0:02:44]} 12... c5 {[%clk 0:02:25.3]}
13. Rad1 {[%clk 0:02:43.8]} 13... cxd4 {[%clk 0:02:16.9]} 14. Nxd4 {[%clk
0:02:44.7]} 14... a6 {[%clk 0:02:18.1]} 15. Nde2 {[%clk 0:02:37.3]} 15... Nc8
{[%clk 0:02:06.9]} 16. h4 {[%clk 0:02:38]} 16... h5 {[%clk 0:02:03.4]} 17. Ba3
{[%clk 0:02:32.4]} 17... Nc5 {[%clk 0:02:02.4]} 18. b4 {[%clk 0:02:28]} 18...
Nd7 {[%clk 0:02:00.9]} 19. c5 {[%clk 0:02:27.2]} 19... bxc5 {[%clk 0:01:59.2]}
20. bxc5 {[%clk 0:02:29.1]} 20... Qa5 {[%clk 0:02:00]} 21. Qb2 {[%clk
0:02:18.5]} 21... Rb8 {[%clk 0:01:23.4]} 22. Bb4 {[%clk 0:02:03.2]} 22... Qd8
{[%clk 0:01:24.1]} 23. Qa3 {[%clk 0:01:59.2]} 23... dxc5 {[%clk 0:01:17.7]} 24.
Bxc5 {[%clk 0:01:59.1]} 24... Re8 {[%clk 0:01:19.1]} 25. Bd4 {[%clk 0:01:48.6]}
25... Qe7 {[%clk 0:01:15.9]} 26. Qa4 {[%clk 0:01:44.9]} 26... Ncb6 {[%clk
0:01:00.7]} 27. Qb3 {[%clk 0:01:29.2]} 27... Ba8 {[%clk 0:00:52.1]} 28. Bxg7
{[%clk 0:01:29]} 28... Kxg7 {[%clk 0:00:54]} 29. Nf4 {[%clk 0:01:19.8]} 29...
Nc5 {[%clk 0:00:50.8]} 30. Qa3 {[%clk 0:01:16.7]} 30... Rec8 {[%clk 0:00:47.6]}
31. Rb1 {[%clk 0:01:09.2]} 31... Nc4 {[%clk 0:00:38.6]} 32. Qc1 {[%clk
0:01:00.9]} 32... Rxb1 {[%clk 0:00:38.9]} 33. Nxb1 {[%clk 0:01:02]} 33... Ne5
{[%clk 0:00:37.2]} 34. Qa3 {[%clk 0:00:56.5]} 34... Kf8 {[%clk 0:00:17.3]} 35.
Nd2 {[%clk 0:00:54.8]} 35... Bb7 {[%clk 0:00:06.5]} 36. Qb2 {[%clk 0:00:47.1]}
36... Qf6 {[%clk 0:00:03.8]} 37. Qb6 {[%clk 0:00:41]} 37... Ned7 {[%clk
0:00:04.3]} 38. Qb4 {[%clk 0:00:37.9]} 38... Qe7 {[%clk 0:00:04]} 39. Rc1 {[%clk
0:00:36.3]} 39... e5 {[%clk 0:00:04.6]} 40. Nd5 {[%clk 0:00:33.4]} 40... Bxd5
{[%clk 0:00:05.9]} 41. exd5 {[%clk 0:00:35.3]} 41... Rb8 {[%clk 0:00:07.5]} 42.
Qa3 {[%clk 0:00:34.7]} 42... Qd6 {[%clk 0:00:08.7]} 43. Nc4 {[%clk 0:00:33.9]}
43... Qe7 {[%clk 0:00:06.8]} 44. Qe3 {[%clk 0:00:30.6]} 44... Kg8 {[%clk
0:00:06.2]} 45. Na5 {[%clk 0:00:29.9]} 45... Re8 {[%clk 0:00:04.2]} 46. Bh3
{[%clk 0:00:24.8]} 46... Qd6 {[%clk 0:00:05.1]} 47. Rd1 {[%clk 0:00:24]} 47...
Nb6 {[%clk 0:00:04.3]} 48. Qa3 {[%clk 0:00:15]} 48... Nb7 {[%clk 0:00:04]} 49.
Qxd6 {[%clk 0:00:11.6]} 49... Nxd6 {[%clk 0:00:05.9]} 50. Nc6 {[%clk 0:00:12.8]}
50... Kg7 {[%clk 0:00:05.4]} 51. Bf1 {[%clk 0:00:14.1]} 51... Rc8 {[%clk
0:00:05.9]} 52. Bxa6 {[%clk 0:00:14.8]} 52... Ra8 {[%clk 0:00:07.2]} 53. Nb4
{[%clk 0:00:16.2]} 53... Ra7 {[%clk 0:00:07.4]} 54. Rc1 {[%clk 0:00:17.3]} 54...
Ne4 {[%clk 0:00:04.9]} 55. Rc6 {[%clk 0:00:15.6]} 55... Na4 {[%clk 0:00:05.8]}
56. d6 {[%clk 0:00:15.5]} 56... Nf6 {[%clk 0:00:06.1]} 57. Bc8 {[%clk
0:00:14.6]} 57... Nb2 {[%clk 0:00:04.1]} 58. Rc7 {[%clk 0:00:15.2]} 58... Ra4
{[%clk 0:00:03]} 59. Nc6 {[%clk 0:00:16.5]} 59... Rc4 {[%clk 0:00:03.8]} 60.
Nxe5 {[%clk 0:00:17]} 60... Rxc7 {[%clk 0:00:04.6]} 61. dxc7 {[%clk 0:00:18.9]}
61... Ne8 {[%clk 0:00:06.5]} 62. Nxf7 {[%clk 0:00:18.5]} 62... Nxc7 {[%clk
0:00:07.8]} 63. Ne5 {[%clk 0:00:18.6]} 63... Nb5 {[%clk 0:00:09]} 64. Be6 {[%clk
0:00:18.4]} 64... Nc3 {[%clk 0:00:10]} 65. Nc4 {[%clk 0:00:17.7]} 65... Nd3
{[%clk 0:00:08.7]} 66. Ne3 {[%clk 0:00:17.3]} 66... Ne4 {[%clk 0:00:09.4]} 67.
Nd1 {[%clk 0:00:15.6]} 67... Nec5 {[%clk 0:00:10.5]} 68. Bc4 {[%clk 0:00:16.7]}
68... Ne5 {[%clk 0:00:11.8]} 69. Be2 {[%clk 0:00:17.1]} 69... Kf6 {[%clk
0:00:13.1]} 70. Ne3 {[%clk 0:00:18.5]} 70... Nc6 {[%clk 0:00:13.9]} 71. Nd5+
{[%clk 0:00:18.6]} 71... Ke5 {[%clk 0:00:14.9]} 72. Nf4 {[%clk 0:00:20.5]} 72...
Kf6 {[%clk 0:00:16.4]} 73. Bd3 {[%clk 0:00:21.3]} 73... Ne5 {[%clk 0:00:15.2]}
74. Bc2 {[%clk 0:00:22.6]} 74... Na6 {[%clk 0:00:13]} 75. a4 {[%clk 0:00:22.8]}
75... Nb4 {[%clk 0:00:14.3]} 76. Bb1 {[%clk 0:00:24.2]} 76... Nbc6 {[%clk
0:00:15.5]} 77. Kg2 {[%clk 0:00:25.6]} 77... Na5 {[%clk 0:00:15.8]} 78. Be4
{[%clk 0:00:26.4]} 78... Nac4 {[%clk 0:00:16.2]} 79. Bc2 {[%clk 0:00:26.1]}
79... Na5 {[%clk 0:00:16.8]} 80. Kf1 {[%clk 0:00:27.6]} 80... Nac6 {[%clk
0:00:13.4]} 81. Ke2 {[%clk 0:00:25.4]} 81... Nd4+ {[%clk 0:00:14.7]} 82. Kd2
{[%clk 0:00:26.9]} 82... Ndc6 {[%clk 0:00:15.8]} 83. Kc3 {[%clk 0:00:28]} 83...
Ng4 {[%clk 0:00:13.8]} 84. Nd3 {[%clk 0:00:25.3]} 84... g5 {[%clk 0:00:13.4]}
85. hxg5+ {[%clk 0:00:26.2]} 85... Kxg5 {[%clk 0:00:15.3]} 86. Kc4 {[%clk
0:00:25]} 86... h4 {[%clk 0:00:15]} 87. gxh4+ {[%clk 0:00:23.3]} 87... Kxh4
{[%clk 0:00:16.9]} 88. Kc5 {[%clk 0:00:21.3]} 88... Na5 {[%clk 0:00:16.7]} 89.
Kb5 {[%clk 0:00:22.7]} 89... Nb7 {[%clk 0:00:17.7]} 90. Kb6 {[%clk 0:00:23.3]}
90... Nd6 {[%clk 0:00:19]} 91. Bb3 {[%clk 0:00:24.7]} 91... Nc8+ {[%clk
0:00:14.9]} 92. Kb7 {[%clk 0:00:24.1]} 92... Nd6+ {[%clk 0:00:15.8]} 93. Kc7
{[%clk 0:00:24.9]} 93... Ne4 {[%clk 0:00:14.5]} 94. a5 {[%clk 0:00:22.6]} 94...
Nc3 {[%clk 0:00:15.9]} 95. Bc4 {[%clk 0:00:20]} 95... Nf6 {[%clk 0:00:05.2]} 96.
a6 {[%clk 0:00:19]} 96... Ne8+ {[%clk 0:00:05.7]} 97. Kc6 {[%clk 0:00:20]} 1-0